[Event "*** SCC Grand Prix: Titled Tuesday Blitz"]
[Site "Chess.com"]
[Date "2020.07.14"]
[Round "5"]
[White "Sibelephant"]
[Black "Zubrrr"]
[Result "1-0"]
[WhiteElo "3128"]
[BlackElo "2644"]
[TimeControl "180+1"]
[EndTime "10:53:25 PDT"]
[Termination "Sibelephant won by resignation"]

1. Nf3 {[%clk 0:03:00.4]} 1... f5 {[%clk 0:02:59.2]} 2. b3 {[%clk 0:02:59.7]}
2... Nf6 {[%clk 0:02:58]} 3. Bb2 {[%clk 0:02:59.7]} 3... e6 {[%clk 0:02:57.9]}
4. g3 {[%clk 0:02:58.6]} 4... b6 {[%clk 0:02:57.6]} 5. Bg2 {[%clk 0:02:58.7]}
5... Bb7 {[%clk 0:02:58]} 6. O-O {[%clk 0:02:59.3]} 6... Be7 {[%clk 0:02:56.4]}
7. c4 {[%clk 0:02:59]} 7... O-O {[%clk 0:02:56.1]} 8. Nc3 {[%clk 0:02:58.6]}
8... Qc8 {[%clk 0:02:50.6]} 9. Rc1 {[%clk 0:02:52.1]} 9... d6 {[%clk 0:02:50.1]}
10. d4 {[%clk 0:02:49.6]} 10... c5 {[%clk 0:02:35.4]} 11. d5 {[%clk 0:02:47.3]}
11... e5 {[%clk 0:02:34.7]} 12. Ng5 {[%clk 0:02:43]} 12... Ne8 {[%clk
0:01:57.1]} 13. Ne6 {[%clk 0:02:41.7]} 13... Rf7 {[%clk 0:01:57.4]} 14. Bh3
{[%clk 0:02:10.4]} 14... g6 {[%clk 0:01:40]} 15. e4 {[%clk 0:02:09.1]} 15... Ng7
{[%clk 0:01:39.4]} 16. exf5 {[%clk 0:02:03.6]} 16... gxf5 {[%clk 0:01:37.7]} 17.
Nxg7 {[%clk 0:01:52.6]} 17... Rxg7 {[%clk 0:01:33.5]} 18. f4 {[%clk 0:01:52.5]}
18... exf4 {[%clk 0:01:12.4]} 19. Rxf4 {[%clk 0:01:50.2]} 19... Bg5 {[%clk
0:01:11.4]} 20. Bxf5 {[%clk 0:01:49.2]} 20... Bxf4 {[%clk 0:00:58.7]} 21. Bxc8
{[%clk 0:01:48.9]} 21... Bxc1 {[%clk 0:00:57.6]} 22. Be6+ {[%clk 0:01:47.1]} 1-0

[Event "*** SCC Grand Prix: Titled Tuesday Blitz"]
[Site "Chess.com"]
[Date "2020.07.14"]
[Round "5"]
[White "AsselLesbekova"]
[Black "maestroza"]
[Result "0-1"]
[WhiteElo "2324"]
[BlackElo "2502"]
[TimeControl "180+1"]
[EndTime "10:53:43 PDT"]
[Termination "maestroza won by resignation"]

1. e4 {[%clk 0:03:00.9]} 1... Nf6 {[%clk 0:02:56.5]} 2. e5 {[%clk 0:03:00.1]}
2... Nd5 {[%clk 0:02:56.7]} 3. d4 {[%clk 0:03:00.6]} 3... d6 {[%clk 0:02:57]} 4.
f4 {[%clk 0:03:00.6]} 4... dxe5 {[%clk 0:02:50.5]} 5. fxe5 {[%clk 0:03:01.5]}
5... c5 {[%clk 0:02:51]} 6. c3 {[%clk 0:02:58.6]} 6... Nc6 {[%clk 0:02:46.1]} 7.
Bc4 {[%clk 0:02:51.7]} 7... Nb6 {[%clk 0:02:42.4]} 8. Bb3 {[%clk 0:02:48.2]}
8... cxd4 {[%clk 0:02:40.8]} 9. cxd4 {[%clk 0:02:25.8]} 9... Qxd4 {[%clk
0:02:37.6]} 10. Nf3 {[%clk 0:02:21.5]} 10... Qxd1+ {[%clk 0:02:35.3]} 11. Bxd1
{[%clk 0:02:22.4]} 11... Bg4 {[%clk 0:02:30.1]} 12. Bf4 {[%clk 0:02:18.7]} 12...
e6 {[%clk 0:02:25.6]} 13. O-O {[%clk 0:02:16.5]} 13... Bc5+ {[%clk 0:02:25.1]}
14. Kh1 {[%clk 0:02:14.7]} 14... Nd5 {[%clk 0:02:25.3]} 15. Bg3 {[%clk
0:02:09.9]} 15... Ne3 {[%clk 0:02:24.3]} 16. Re1 {[%clk 0:01:59.5]} 16... Nxd1
{[%clk 0:02:20.3]} 17. Rxd1 {[%clk 0:02:00.4]} 17... Bxf3 {[%clk 0:02:01.4]} 18.
gxf3 {[%clk 0:02:01.3]} 18... Bd4 {[%clk 0:02:01.9]} 19. Nc3 {[%clk 0:01:59]}
19... Bxe5 {[%clk 0:02:02.1]} 20. Bxe5 {[%clk 0:01:46.2]} 20... Nxe5 {[%clk
0:02:01.9]} 21. Kg2 {[%clk 0:01:46]} 21... Ke7 {[%clk 0:01:56]} 22. Rd4 {[%clk
0:01:41.6]} 22... Rhd8 {[%clk 0:01:51]} 23. Rad1 {[%clk 0:01:30.8]} 23... Rxd4
{[%clk 0:01:39.2]} 24. Rxd4 {[%clk 0:01:31.7]} 24... Rd8 {[%clk 0:01:39.7]} 25.
Rb4 {[%clk 0:01:29.3]} 25... b6 {[%clk 0:01:39.8]} 26. Kg3 {[%clk 0:01:04.8]}
26... Rd3 {[%clk 0:01:36.7]} 0-1

[Event "*** SCC Grand Prix: Titled Tuesday Blitz"]
[Site "Chess.com"]
[Date "2020.07.14"]
[Round "5"]
[White "Josip_buje"]
[Black "TurboSteen"]
[Result "1-0"]
[WhiteElo "2286"]
[BlackElo "1946"]
[TimeControl "180+1"]
[EndTime "10:53:50 PDT"]
[Termination "Josip_buje won by resignation"]

1. d4 {[%clk 0:03:00.9]} 1... Nf6 {[%clk 0:02:44.8]} 2. Nf3 {[%clk 0:03:00.2]}
2... g6 {[%clk 0:02:44.4]} 3. Bg5 {[%clk 0:03:00.7]} 3... Bg7 {[%clk 0:02:43.2]}
4. e3 {[%clk 0:03:01.2]} 4... O-O {[%clk 0:02:41.5]} 5. Nbd2 {[%clk 0:03:01.6]}
5... d5 {[%clk 0:02:38.9]} 6. Bd3 {[%clk 0:03:01.5]} 6... b6 {[%clk 0:02:35.6]}
7. O-O {[%clk 0:03:01.3]} 7... c5 {[%clk 0:02:34.3]} 8. c3 {[%clk 0:03:00.9]}
8... Nc6 {[%clk 0:02:32.6]} 9. h3 {[%clk 0:03:00.1]} 9... Bb7 {[%clk 0:02:29.2]}
10. Re1 {[%clk 0:03:00.2]} 10... Re8 {[%clk 0:02:25.8]} 11. Qe2 {[%clk
0:02:56.1]} 11... e5 {[%clk 0:02:19.7]} 12. dxe5 {[%clk 0:02:55.5]} 12... Nxe5
{[%clk 0:02:18.6]} 13. Bb5 {[%clk 0:02:52.2]} 13... Re7 {[%clk 0:02:16.2]} 14.
Nxe5 {[%clk 0:02:50.9]} 14... Rxe5 {[%clk 0:02:15.6]} 15. Nf3 {[%clk 0:02:50.1]}
15... Re7 {[%clk 0:02:13.8]} 16. Rad1 {[%clk 0:02:50.3]} 16... a6 {[%clk
0:02:12.1]} 17. Ba4 {[%clk 0:02:49.3]} 17... b5 {[%clk 0:02:10.3]} 18. Bb3
{[%clk 0:02:49.6]} 18... h6 {[%clk 0:02:06.9]} 19. Bh4 {[%clk 0:02:37.6]} 19...
g5 {[%clk 0:02:03.8]} 20. Bg3 {[%clk 0:02:37.5]} 20... Ne4 {[%clk 0:02:03.2]}
21. Bh2 {[%clk 0:02:36.6]} 21... Rd7 {[%clk 0:01:55.8]} 22. Nd2 {[%clk
0:02:32.9]} 22... Qe7 {[%clk 0:01:48.8]} 23. Nxe4 {[%clk 0:02:28.4]} 23... dxe4
{[%clk 0:01:46.7]} 24. Rxd7 {[%clk 0:02:27.4]} 24... Qxd7 {[%clk 0:01:45.7]} 25.
Rd1 {[%clk 0:02:27.7]} 25... Qe7 {[%clk 0:01:45.6]} 26. Qd2 {[%clk 0:02:24.8]}
26... c4 {[%clk 0:01:39.5]} 27. Bc2 {[%clk 0:02:22.1]} 27... Be5 {[%clk
0:01:36.5]} 28. Bxe5 {[%clk 0:02:19.6]} 28... Qxe5 {[%clk 0:01:35.2]} 29. Qd7
{[%clk 0:02:19.3]} 29... Rb8 {[%clk 0:01:31.3]} 30. Rd6 {[%clk 0:02:14]} 30...
Kg7 {[%clk 0:01:27.6]} 31. Qc7 {[%clk 0:02:11.9]} 31... Qe8 {[%clk 0:01:18.1]}
32. Rb6 {[%clk 0:01:47]} 1-0

[Event "*** SCC Grand Prix: Titled Tuesday Blitz"]
[Site "Chess.com"]
[Date "2020.07.14"]
[Round "5"]
[White "FedaMaster"]
[Black "Eternauta2400"]
[Result "0-1"]
[WhiteElo "2367"]
[BlackElo "2664"]
[TimeControl "180+1"]
[EndTime "10:53:51 PDT"]
[Termination "Eternauta2400 won by resignation"]

1. e4 {[%clk 0:03:00.9]} 1... e5 {[%clk 0:02:59.5]} 2. Nf3 {[%clk 0:03:00.3]}
2... Nc6 {[%clk 0:02:59.3]} 3. Bb5 {[%clk 0:03:00.9]} 3... a6 {[%clk 0:02:59.3]}
4. Bxc6 {[%clk 0:03:01.1]} 4... dxc6 {[%clk 0:02:59.1]} 5. O-O {[%clk 0:03:02]}
5... Bd6 {[%clk 0:02:59.3]} 6. d4 {[%clk 0:03:01.8]} 6... exd4 {[%clk
0:03:00.2]} 7. Qxd4 {[%clk 0:03:01.9]} 7... f6 {[%clk 0:03:00.5]} 8. Be3 {[%clk
0:02:58.9]} 8... Ne7 {[%clk 0:02:58.9]} 9. Nbd2 {[%clk 0:02:36.9]} 9... Be6
{[%clk 0:02:58]} 10. Rad1 {[%clk 0:02:34]} 10... Ng6 {[%clk 0:02:39.8]} 11. Nc4
{[%clk 0:02:33.6]} 11... Bxc4 {[%clk 0:02:39.8]} 12. Qxc4 {[%clk 0:02:33.4]}
12... Qe7 {[%clk 0:02:35.4]} 13. Rfe1 {[%clk 0:02:22.6]} 13... O-O-O {[%clk
0:02:35.2]} 14. c3 {[%clk 0:02:12.9]} 14... Rhe8 {[%clk 0:02:35]} 15. Ba7 {[%clk
0:01:52]} 15... Qe6 {[%clk 0:02:27.6]} 16. Qa4 {[%clk 0:01:49.9]} 16... Nf4
{[%clk 0:02:17.2]} 17. h3 {[%clk 0:01:02.7]} 17... g5 {[%clk 0:02:10.6]} 18. Nd4
{[%clk 0:01:00.7]} 18... Qe5 {[%clk 0:02:06.5]} 19. Nf5 {[%clk 0:00:51.3]} 19...
Nxh3+ {[%clk 0:01:57.1]} 20. gxh3 {[%clk 0:00:50.3]} 20... Qh2+ {[%clk
0:01:57.1]} 21. Kf1 {[%clk 0:00:50.7]} 21... Qh1+ {[%clk 0:01:57.6]} 22. Ke2
{[%clk 0:00:50.6]} 22... Rxe4+ {[%clk 0:01:56.7]} 23. Qxe4 {[%clk 0:00:48.3]}
23... Qxe4+ {[%clk 0:01:55.7]} 24. Ne3 {[%clk 0:00:49.1]} 24... b6 {[%clk
0:01:53.4]} 25. Rd4 {[%clk 0:00:47.7]} 25... Qe6 {[%clk 0:01:51.1]} 26. Kf1
{[%clk 0:00:45.1]} 26... Qxh3+ {[%clk 0:01:46.7]} 27. Kg1 {[%clk 0:00:40.2]}
27... Bh2+ {[%clk 0:01:43.4]} 0-1

[Event "*** SCC Grand Prix: Titled Tuesday Blitz"]
[Site "Chess.com"]
[Date "2020.07.14"]
[Round "5"]
[White "winniethepooh04"]
[Black "coalescenet"]
[Result "0-1"]
[WhiteElo "2165"]
[BlackElo "2345"]
[TimeControl "180+1"]
[EndTime "10:53:51 PDT"]
[Termination "coalescenet won by resignation"]

1. e4 {[%clk 0:03:00.9]} 1... c6 {[%clk 0:02:58.5]} 2. Nf3 {[%clk 0:02:53.7]}
2... d5 {[%clk 0:02:59]} 3. Nc3 {[%clk 0:02:52.8]} 3... Bg4 {[%clk 0:02:58.6]}
4. exd5 {[%clk 0:02:50]} 4... cxd5 {[%clk 0:02:57.9]} 5. d4 {[%clk 0:02:50.4]}
5... a6 {[%clk 0:02:54.5]} 6. h3 {[%clk 0:02:50.3]} 6... Bh5 {[%clk 0:02:54]} 7.
a4 {[%clk 0:02:48.7]} 7... e6 {[%clk 0:02:51]} 8. Be2 {[%clk 0:02:47]} 8... Nf6
{[%clk 0:02:49.3]} 9. O-O {[%clk 0:02:47]} 9... Nc6 {[%clk 0:02:47.7]} 10. Re1
{[%clk 0:02:42]} 10... Be7 {[%clk 0:02:45.4]} 11. Ne5 {[%clk 0:02:35.4]} 11...
Bxe2 {[%clk 0:02:41.2]} 12. Qxe2 {[%clk 0:02:30.8]} 12... Nxd4 {[%clk
0:02:35.7]} 13. Qd3 {[%clk 0:02:09.6]} 13... Nf5 {[%clk 0:02:25.2]} 14. g4
{[%clk 0:01:59.7]} 14... Nd6 {[%clk 0:02:24.2]} 15. g5 {[%clk 0:01:50.6]} 15...
Nfe4 {[%clk 0:02:23.3]} 16. Nxd5 {[%clk 0:01:26.7]} 16... exd5 {[%clk
0:02:16.7]} 17. Qxd5 {[%clk 0:01:24]} 17... O-O {[%clk 0:02:08.7]} 18. Rxe4
{[%clk 0:01:21.3]} 18... Nxe4 {[%clk 0:02:09.3]} 19. Qxe4 {[%clk 0:01:20.2]}
19... Qd1+ {[%clk 0:02:05.3]} 20. Kg2 {[%clk 0:01:17.7]} 20... Rae8 {[%clk
0:01:52.9]} 21. Qf5 {[%clk 0:01:04.9]} 21... Qd5+ {[%clk 0:01:47.1]} 22. f3
{[%clk 0:00:57.1]} 22... Bd6 {[%clk 0:01:38.9]} 0-1

[Event "*** SCC Grand Prix: Titled Tuesday Blitz"]
[Site "Chess.com"]
[Date "2020.07.14"]
[Round "5"]
[White "FairChess_on_YouTube"]
[Black "GMHess"]
[Result "1-0"]
[WhiteElo "2992"]
[BlackElo "2751"]
[TimeControl "180+1"]
[EndTime "10:54:00 PDT"]
[Termination "FairChess_on_YouTube won by resignation"]

1. e4 {[%clk 0:03:00.9]} 1... d6 {[%clk 0:02:59.3]} 2. d4 {[%clk 0:03:00.4]}
2... Nf6 {[%clk 0:03:00.2]} 3. Nc3 {[%clk 0:03:00.2]} 3... c6 {[%clk 0:03:00.4]}
4. f3 {[%clk 0:02:56.6]} 4... Nbd7 {[%clk 0:02:57.5]} 5. Be3 {[%clk 0:02:55.2]}
5... e5 {[%clk 0:02:57.8]} 6. Qd2 {[%clk 0:02:50.2]} 6... Be7 {[%clk 0:02:58.1]}
7. Nge2 {[%clk 0:02:44.7]} 7... O-O {[%clk 0:02:56.6]} 8. Ng3 {[%clk 0:02:44.2]}
8... d5 {[%clk 0:02:10.9]} 9. exd5 {[%clk 0:02:31.9]} 9... cxd5 {[%clk
0:02:03.6]} 10. O-O-O {[%clk 0:02:31.3]} 10... Qa5 {[%clk 0:01:59.4]} 11. dxe5
{[%clk 0:01:58.5]} 11... Nxe5 {[%clk 0:01:52.5]} 12. Nxd5 {[%clk 0:01:57.3]}
12... Qxa2 {[%clk 0:01:16.5]} 13. Nxe7+ {[%clk 0:01:55.7]} 13... Kh8 {[%clk
0:01:16.2]} 14. Qc3 {[%clk 0:01:42]} 14... Be6 {[%clk 0:01:02.8]} 15. Qa3 {[%clk
0:01:34.2]} 15... Qxa3 {[%clk 0:00:47.9]} 16. bxa3 {[%clk 0:01:35.1]} 16... Rfe8
{[%clk 0:00:22.6]} 17. Nef5 {[%clk 0:01:29.4]} 17... Nc4 {[%clk 0:00:22.9]} 18.
Bxc4 {[%clk 0:01:27.4]} 18... Bxc4 {[%clk 0:00:23.8]} 19. Bd4 {[%clk 0:01:27.5]}
1-0

[Event "*** SCC Grand Prix: Titled Tuesday Blitz"]
[Site "Chess.com"]
[Date "2020.07.14"]
[Round "5"]
[White "Chessmasterzt"]
[Black "MateSchmate"]
[Result "0-1"]
[WhiteElo "2572"]
[BlackElo "2416"]
[TimeControl "180+1"]
[EndTime "10:54:01 PDT"]
[Termination "MateSchmate won by resignation"]

1. d4 {[%clk 0:03:00.9]} 1... c5 {[%clk 0:02:59]} 2. Nf3 {[%clk 0:03:01.8]} 2...
cxd4 {[%clk 0:02:59.9]} 3. Nxd4 {[%clk 0:02:58.9]} 3... d6 {[%clk 0:03:00]} 4.
c4 {[%clk 0:02:56.9]} 4... Nf6 {[%clk 0:02:59.8]} 5. Nc3 {[%clk 0:02:56]} 5...
g6 {[%clk 0:03:00]} 6. g3 {[%clk 0:02:56]} 6... Bg7 {[%clk 0:03:00.5]} 7. Bg2
{[%clk 0:02:56.5]} 7... O-O {[%clk 0:03:01.4]} 8. O-O {[%clk 0:02:56.8]} 8... a6
{[%clk 0:03:02]} 9. b3 {[%clk 0:02:55.7]} 9... Qc7 {[%clk 0:03:02.4]} 10. Bb2
{[%clk 0:02:55.1]} 10... Nc6 {[%clk 0:03:02.8]} 11. Rc1 {[%clk 0:02:55.3]} 11...
Bd7 {[%clk 0:03:02.8]} 12. Nd5 {[%clk 0:02:51.9]} 12... Qd8 {[%clk 0:03:02.3]}
13. Nxf6+ {[%clk 0:02:44.7]} 13... Bxf6 {[%clk 0:03:03.2]} 14. Nxc6 {[%clk
0:02:44.5]} 14... Bxc6 {[%clk 0:03:01.4]} 15. Bxf6 {[%clk 0:02:44.1]} 15... exf6
{[%clk 0:02:58.7]} 16. Qd2 {[%clk 0:02:34.1]} 16... Re8 {[%clk 0:02:56.9]} 17.
Rfd1 {[%clk 0:02:29.1]} 17... Re6 {[%clk 0:02:51.8]} 18. c5 {[%clk 0:02:10.4]}
18... Bxg2 {[%clk 0:02:44.8]} 19. Kxg2 {[%clk 0:02:11.3]} 19... Rc8 {[%clk
0:02:44.8]} 20. cxd6 {[%clk 0:02:02.8]} 20... Rxc1 {[%clk 0:02:43]} 21. Qxc1
{[%clk 0:02:03.7]} 21... Rxd6 {[%clk 0:02:42.5]} 22. Rxd6 {[%clk 0:02:04.2]}
22... Qxd6 {[%clk 0:02:43.1]} 23. Qc8+ {[%clk 0:02:04.6]} 23... Kg7 {[%clk
0:02:43.4]} 24. Qxb7 {[%clk 0:02:05]} 24... Qa3 {[%clk 0:02:42]} 25. g4 {[%clk
0:01:47.3]} 25... Qxa2 {[%clk 0:02:39.5]} 26. Kf3 {[%clk 0:01:47.8]} 26... a5
{[%clk 0:02:37.1]} 27. Qb5 {[%clk 0:01:45.8]} 27... Qd2 {[%clk 0:02:31.1]} 28.
Qd3 {[%clk 0:01:41.9]} 28... Qe1 {[%clk 0:02:27]} 29. Kg2 {[%clk 0:01:38.6]}
29... Qa1 {[%clk 0:02:25.1]} 30. Qd5 {[%clk 0:01:32.7]} 30... a4 {[%clk
0:02:17.4]} 31. Qa5 {[%clk 0:01:18.4]} 31... a3 {[%clk 0:02:16.7]} 32. g5 {[%clk
0:00:36.8]} 32... fxg5 {[%clk 0:02:11.9]} 33. Qe5+ {[%clk 0:00:14.5]} 33... Qxe5
{[%clk 0:02:10.3]} 0-1

[Event "*** SCC Grand Prix: Titled Tuesday Blitz"]
[Site "Chess.com"]
[Date "2020.07.14"]
[Round "5"]
[White "Klaus1995"]
[Black "f3andwins"]
[Result "0-1"]
[WhiteElo "1896"]
[BlackElo "2446"]
[TimeControl "180+1"]
[EndTime "10:54:04 PDT"]
[Termination "f3andwins won by checkmate"]

1. e4 {[%clk 0:03:00.9]} 1... g6 {[%clk 0:03:00.3]} 2. d4 {[%clk 0:02:59.1]}
2... Bg7 {[%clk 0:03:00.9]} 3. Nc3 {[%clk 0:02:58.9]} 3... c6 {[%clk 0:03:01.5]}
4. Be3 {[%clk 0:02:58.7]} 4... d5 {[%clk 0:03:02.2]} 5. f3 {[%clk 0:02:58.2]}
5... dxe4 {[%clk 0:02:54.4]} 6. fxe4 {[%clk 0:02:59.1]} 6... e5 {[%clk
0:02:52.8]} 7. d5 {[%clk 0:02:46.2]} 7... Ne7 {[%clk 0:02:51.7]} 8. Bc4 {[%clk
0:02:22.3]} 8... cxd5 {[%clk 0:02:48.1]} 9. exd5 {[%clk 0:02:21.1]} 9... Nf5
{[%clk 0:02:46.1]} 10. Bc5 {[%clk 0:02:20]} 10... Nd6 {[%clk 0:02:40.7]} 11. Qe2
{[%clk 0:02:11.2]} 11... O-O {[%clk 0:02:39.5]} 12. O-O-O {[%clk 0:01:56.9]}
12... Re8 {[%clk 0:02:25.3]} 13. Kb1 {[%clk 0:01:55.7]} 13... Na6 {[%clk
0:02:23.5]} 14. Bxd6 {[%clk 0:01:48]} 14... Qxd6 {[%clk 0:02:22]} 15. Ne4 {[%clk
0:01:48.9]} 15... Qd8 {[%clk 0:02:21.6]} 16. Nf3 {[%clk 0:01:48.9]} 16... f5
{[%clk 0:02:20]} 17. Nc3 {[%clk 0:01:45.5]} 17... e4 {[%clk 0:02:18.6]} 18. d6+
{[%clk 0:01:45.1]} 18... Kh8 {[%clk 0:02:15.6]} 19. Nd4 {[%clk 0:01:40.7]} 19...
Bd7 {[%clk 0:02:08]} 20. Ndb5 {[%clk 0:01:33.8]} 20... Qf6 {[%clk 0:01:57.5]}
21. Nc7 {[%clk 0:01:15.8]} 21... Nxc7 {[%clk 0:01:53.6]} 22. dxc7 {[%clk
0:01:16.7]} 22... Bc6 {[%clk 0:01:50]} 23. Bb5 {[%clk 0:00:58]} 23... Rac8
{[%clk 0:01:35.2]} 24. Bxc6 {[%clk 0:00:57.6]} 24... bxc6 {[%clk 0:01:33.9]} 25.
Qc4 {[%clk 0:00:50]} 25... Rxc7 {[%clk 0:01:29.7]} 26. Qc5 {[%clk 0:00:50.4]}
26... Rb7 {[%clk 0:01:26]} 27. Na4 {[%clk 0:00:50.1]} 27... Rxb2+ {[%clk
0:01:24.7]} 28. Kc1 {[%clk 0:00:50.3]} 28... Rb1+ {[%clk 0:01:24.6]} 29. Kxb1
{[%clk 0:00:49.7]} 29... Qa1# {[%clk 0:01:24.4]} 0-1

[Event "*** SCC Grand Prix: Titled Tuesday Blitz"]
[Site "Chess.com"]
[Date "2020.07.14"]
[Round "5"]
[White "barriochess"]
[Black "Bodnar_Mykola"]
[Result "0-1"]
[WhiteElo "2296"]
[BlackElo "2486"]
[TimeControl "180+1"]
[EndTime "10:54:13 PDT"]
[Termination "Bodnar_Mykola won by resignation"]

1. d4 {[%clk 0:03:00.9]} 1... Nf6 {[%clk 0:02:59.9]} 2. c4 {[%clk 0:02:59.6]}
2... c5 {[%clk 0:02:58.8]} 3. d5 {[%clk 0:02:59.3]} 3... b5 {[%clk 0:02:55]} 4.
Nd2 {[%clk 0:02:57.1]} 4... bxc4 {[%clk 0:02:52.5]} 5. e4 {[%clk 0:02:56.8]}
5... e6 {[%clk 0:02:52]} 6. Bxc4 {[%clk 0:02:53.9]} 6... exd5 {[%clk 0:02:51.8]}
7. exd5 {[%clk 0:02:54.8]} 7... d6 {[%clk 0:02:51.8]} 8. Ngf3 {[%clk 0:02:54.2]}
8... Be7 {[%clk 0:02:46.2]} 9. O-O {[%clk 0:02:53.6]} 9... O-O {[%clk
0:02:45.9]} 10. b3 {[%clk 0:02:53.7]} 10... Ba6 {[%clk 0:02:42.6]} 11. Bb2
{[%clk 0:02:52.5]} 11... Bxc4 {[%clk 0:02:40.6]} 12. Nxc4 {[%clk 0:02:53.4]}
12... Na6 {[%clk 0:02:39.5]} 13. h3 {[%clk 0:02:37.4]} 13... Nc7 {[%clk
0:02:39.4]} 14. Ne3 {[%clk 0:02:37.3]} 14... Re8 {[%clk 0:02:37.1]} 15. Qd3
{[%clk 0:02:23.4]} 15... Bf8 {[%clk 0:02:34]} 16. Rfd1 {[%clk 0:02:22.9]} 16...
g6 {[%clk 0:02:30.7]} 17. Bc3 {[%clk 0:01:59.8]} 17... Bg7 {[%clk 0:02:26.8]}
18. Rab1 {[%clk 0:01:57.5]} 18... Qd7 {[%clk 0:02:24]} 19. a4 {[%clk 0:01:55.1]}
19... Rab8 {[%clk 0:02:18.7]} 20. Bxf6 {[%clk 0:01:52.8]} 20... Bxf6 {[%clk
0:02:16.9]} 21. Nc4 {[%clk 0:01:49.1]} 21... Na6 {[%clk 0:02:07.8]} 22. Re1
{[%clk 0:01:40]} 22... Nb4 {[%clk 0:02:05.5]} 23. Qd2 {[%clk 0:01:38.9]} 23...
Kg7 {[%clk 0:01:59.2]} 24. Nh2 {[%clk 0:01:15.8]} 24... h5 {[%clk 0:01:50.2]}
25. Nf3 {[%clk 0:01:15.7]} 25... Rbd8 {[%clk 0:01:44.5]} 26. Rxe8 {[%clk
0:01:00]} 26... Qxe8 {[%clk 0:01:37.8]} 27. Re1 {[%clk 0:00:58.6]} 27... Qd7
{[%clk 0:01:36.8]} 28. Re2 {[%clk 0:00:50.7]} 28... Qf5 {[%clk 0:01:35.6]} 29.
Ne3 {[%clk 0:00:50.3]} 29... Qf4 {[%clk 0:01:32.1]} 30. g4 {[%clk 0:00:41.2]}
30... Qxf3 {[%clk 0:01:26.7]} 0-1

[Event "*** SCC Grand Prix: Titled Tuesday Blitz"]
[Site "Chess.com"]
[Date "2020.07.14"]
[Round "5"]
[White "bocah_sakit"]
[Black "elohunter1999"]
[Result "1-0"]
[WhiteElo "2706"]
[BlackElo "2464"]
[TimeControl "180+1"]
[EndTime "10:54:19 PDT"]
[Termination "bocah_sakit won by resignation"]

1. e4 {[%clk 0:03:00.9]} 1... e5 {[%clk 0:02:59.2]} 2. Nf3 {[%clk 0:03:00.7]}
2... Nc6 {[%clk 0:02:59.1]} 3. Bb5 {[%clk 0:03:00.9]} 3... a6 {[%clk 0:02:59.1]}
4. Bxc6 {[%clk 0:03:01.1]} 4... dxc6 {[%clk 0:02:59.1]} 5. O-O {[%clk 0:03:02]}
5... Qf6 {[%clk 0:02:50.4]} 6. d4 {[%clk 0:03:01]} 6... exd4 {[%clk 0:02:50.4]}
7. Bg5 {[%clk 0:03:00.7]} 7... Qd6 {[%clk 0:02:50]} 8. Qxd4 {[%clk 0:02:56.5]}
8... Qxd4 {[%clk 0:02:45.2]} 9. Nxd4 {[%clk 0:02:57.4]} 9... Bd7 {[%clk
0:02:44.7]} 10. Nc3 {[%clk 0:02:56.2]} 10... Be7 {[%clk 0:02:28.5]} 11. Bxe7
{[%clk 0:02:54.5]} 11... Nxe7 {[%clk 0:02:29.4]} 12. Rad1 {[%clk 0:02:54.2]}
12... O-O-O {[%clk 0:02:28.8]} 13. Rd2 {[%clk 0:02:53.5]} 13... Rhe8 {[%clk
0:02:10.6]} 14. Rfd1 {[%clk 0:02:52.2]} 14... f5 {[%clk 0:02:07.3]} 15. f3
{[%clk 0:02:43.3]} 15... fxe4 {[%clk 0:02:04.2]} 16. Nxe4 {[%clk 0:02:44.2]}
16... b6 {[%clk 0:02:01.6]} 17. Kf2 {[%clk 0:02:42]} 17... Rf8 {[%clk
0:01:45.6]} 18. Ng5 {[%clk 0:02:36.6]} 18... Rf6 {[%clk 0:01:39.3]} 19. Nxh7
{[%clk 0:02:28.3]} 19... Rh6 {[%clk 0:01:39.2]} 20. Ng5 {[%clk 0:02:27.9]} 20...
Rxh2 {[%clk 0:01:38.8]} 21. Nde6 {[%clk 0:02:26.7]} 21... Nd5 {[%clk 0:01:29.9]}
22. Nxd8 {[%clk 0:02:23.7]} 22... Kxd8 {[%clk 0:01:30.8]} 23. c4 {[%clk
0:02:20.6]} 23... Nf6 {[%clk 0:01:30.4]} 24. Nh3 {[%clk 0:02:18.2]} 24... Ke7
{[%clk 0:01:21.2]} 25. Kg3 {[%clk 0:02:17.7]} 25... Rxh3+ {[%clk 0:01:21.2]} 26.
gxh3 {[%clk 0:02:17.4]} 26... Bf5 {[%clk 0:01:19.1]} 27. Re1+ {[%clk 0:02:15.8]}
27... Kf7 {[%clk 0:01:19]} 28. Kf4 {[%clk 0:02:14.2]} 28... g6 {[%clk
0:01:18.7]} 29. h4 {[%clk 0:02:13.4]} 29... a5 {[%clk 0:01:04.6]} 30. Rd8 {[%clk
0:02:05.4]} 30... b5 {[%clk 0:01:01.8]} 31. b3 {[%clk 0:02:01.9]} 31... Be6
{[%clk 0:00:57.3]} 32. Rxe6 {[%clk 0:01:59.5]} 32... Kxe6 {[%clk 0:00:57]} 33.
Kg5 {[%clk 0:01:59.9]} 33... a4 {[%clk 0:00:46.2]} 34. Kxg6 {[%clk 0:01:51.2]}
34... a3 {[%clk 0:00:44.9]} 35. h5 {[%clk 0:01:49.1]} 35... Ke7 {[%clk
0:00:42.7]} 36. h6 {[%clk 0:01:39.4]} 1-0

[Event "*** SCC Grand Prix: Titled Tuesday Blitz"]
[Site "Chess.com"]
[Date "2020.07.14"]
[Round "5"]
[White "731291"]
[Black "MFguimaraes"]
[Result "1-0"]
[WhiteElo "2664"]
[BlackElo "2395"]
[TimeControl "180+1"]
[EndTime "10:54:22 PDT"]
[Termination "731291 won by resignation"]

1. d4 {[%clk 0:03:00.9]} 1... Nf6 {[%clk 0:02:59.7]} 2. Nf3 {[%clk 0:02:54]}
2... d5 {[%clk 0:02:59.6]} 3. c4 {[%clk 0:02:52.6]} 3... c6 {[%clk 0:03:00]} 4.
e3 {[%clk 0:02:52.3]} 4... e6 {[%clk 0:02:57]} 5. Nc3 {[%clk 0:02:50.4]} 5...
Nbd7 {[%clk 0:02:52.6]} 6. Be2 {[%clk 0:02:47.7]} 6... Bd6 {[%clk 0:02:50.8]} 7.
O-O {[%clk 0:02:46.9]} 7... O-O {[%clk 0:02:50.8]} 8. b3 {[%clk 0:02:46.2]} 8...
dxc4 {[%clk 0:02:45.9]} 9. Bxc4 {[%clk 0:02:45.4]} 9... e5 {[%clk 0:02:42.8]}
10. Bb2 {[%clk 0:02:11]} 10... b5 {[%clk 0:02:30.4]} 11. Be2 {[%clk 0:02:07.8]}
11... Bb7 {[%clk 0:02:16.1]} 12. Qc2 {[%clk 0:02:01.8]} 12... Rc8 {[%clk
0:02:12.1]} 13. Rfd1 {[%clk 0:01:59.4]} 13... Qe7 {[%clk 0:02:10.6]} 14. dxe5
{[%clk 0:01:54.7]} 14... Nxe5 {[%clk 0:02:07.4]} 15. Nd4 {[%clk 0:01:54.5]}
15... Neg4 {[%clk 0:01:57.3]} 16. g3 {[%clk 0:01:32]} 16... Nxe3 {[%clk
0:01:55.4]} 17. fxe3 {[%clk 0:01:31.6]} 17... Qxe3+ {[%clk 0:01:56.3]} 18. Kf1
{[%clk 0:01:31.8]} 18... c5 {[%clk 0:01:19.2]} 19. Nf5 {[%clk 0:01:22.3]} 19...
Qe6 {[%clk 0:00:54.1]} 20. Rxd6 {[%clk 0:01:15.1]} 20... Qe8 {[%clk 0:00:53.3]}
21. Re1 {[%clk 0:01:07]} 1-0